[Event "10th Uppsala Young Champions 2023"]
[Site "Uppsala"]
[Date "2023.11.01"]
[Round "9.9"]
[White "Harish, Neeraj"]
[Black "Valcu, Lavinia"]
[Result "1/2-1/2"]
[ECO "B12"]
[WhiteElo "2076"]
[BlackElo "1990"]
[Annotator "NA"]
[PlyCount "104"]
[EventDate "2023.10.27"]
[EventType "swiss"]
[EventCountry "SWE"]
[SourceTitle "playchess.com"]
[Source "ChessBase"]
[SourceQuality "1"]
[TimeControl "5400+30"]

1. e4 {[%emt 0:00:03]} c6 {[%emt 0:00:07]} 2. d4 {[%emt 0:00:07]} d5 {[%emt 0:00:09]} 3. e5 {[%emt 0:00:05]} Bf5 {[%emt 0:00:07]} 4. h4 {[%emt 0:00:25]} h5 {[%emt 0:00:11]} 5. Bd3 {[%emt 0:00:05]} Bxd3 {[%emt 0:00:06]} 6. Qxd3 {[%emt 0:00:08]} e6 {[%emt 0:01:03]} 7. Bg5 {[%emt 0:01:50]} Be7 {[%emt 0:00:48]} 8. Nf3 {[%emt 0:00:08]} Nh6 {[%emt 0:00:34]} 9. O-O {[%emt 0:02:01]} Nd7 {[%emt 0:01:17]} 10. Nbd2 {[%emt 0:02:43]} Nf5 {[%emt 0:01:59]} 11. g3 {[%emt 0:00:29]} O-O {[%emt 0:01:26]} 12. Rfe1 {[%emt 0:01:59]} Rc8 {[%emt 0:02:25]} 13. Nf1 {[%emt 0:04:07]} c5 {[%emt 0:01:38]} 14. c3 {[%emt 0:00:10]} Bxg5 {[%emt 0:14:36]} 15. Nxg5 {[%emt 0:00:54]} cxd4 {[%emt 0:00:22]} 16. cxd4 {[%emt 0:00:07]} Qb6 {[%emt 0:02:40]} 17. Ne3 {[%emt 0:04:59]} Qxd4 {[%emt 0:00:41]} 18. Qe2 {[%emt 0:00:18]} Qxe5 {[%emt 0:07:27]} 19. Qxh5 {[%emt 0:06:27]} Nf6 {[%emt 0:00:23]} 20. Qf3 {[%emt 0:00:28]} Nxe3 {[%emt 0:01:26]} 21. Rxe3 {[%emt 0:00:11]} Qxb2 {[%emt 0:00:17]} 22. Rae1 {[%emt 0:00:06]} d4 {[%emt 0:02:25]} 23. Rb3 {[%emt 0:00:17]} Qd2 {[%emt 0:01:42]} 24. Rd1 {[%emt 0:02:42]} Rc1 {[%emt 0:00:25]} 25. Rxc1 {[%emt 0:00:08]} Qxc1+ {[%emt 0:00:05]} 26. Kg2 {[%emt 0:00:04]} b6 {[%emt 0:02:57]} 27. Rd3 {[%emt 0:00:41]} e5 {[%emt 0:00:35]} 28. Qf5 {[%emt 0:00:14]} Qc6+ {[%emt 0:02:44]} 29. Kh2 {[%emt 0:01:12]} Re8 {[%emt 0:01:15]} 30. Rd2 {[%emt 0:03:14]} Qd7 {[%emt 0:06:18]} 31. Qd3 {[%emt 0:00:13]} b5 {[%emt 0:03:33]} 32. Re2 {[%emt 0:03:02]} Qd5 {[%emt 0:01:22]} 33. f3 {[%emt 0:05:53]} Qc4 {[%emt 0:01:38]} 34. Qd2 {[%emt 0:00:07]} Qc3 {[%emt 0:00:41]} 35. Qd1 {[%emt 0:02:26]} e4 {[%emt 0:15:26]} 36. Nxe4 {[%emt 0:03:35]} Nxe4 {[%emt 0:00:08]} 37. fxe4 {[%emt 0:00:06]} d3 {[%emt 0:01:10]} 38. Rd2 {[%emt 0:04:45]} Rd8 {[%emt 0:00:20]} 39. e5 {[%emt 0:01:45]} a5 {[%emt 0:00:28]} 40. Qe1 {[%emt 0:01:10]} Kh8 {[%emt 0:01:52]} 41. Qe3 {[%emt 0:01:04]} Qd4 {[%emt 0:03:40]} 42. Qf3 {[%emt 0:00:54]} Qd5 {[%emt 0:00:47]} 43. Qe3 {[%emt 0:02:53]} b4 {[%emt 0:00:39]} 44. h5 {[%emt 0:00:07]} Kh7 {[%emt 0:01:57]} 45. Qf4 {[%emt 0:00:52]} Qd7 {[%emt 0:04:57]} 46. h6 {[%emt 0:02:40]} gxh6 {[%emt 0:00:15]} 47. Rxd3 {[%emt 0:00:58]} Qxd3 {[%emt 0:00:48]} 48. Qxf7+ {[%emt 0:00:06]} Kh8 {[%emt 0:00:07]} 49. Qf6+ {[%emt 0:00:05]} Kg8 {[%emt 0:00:18]} 50. Qe6+ {[%emt 0:00:05]} Kf8 {[%emt 0:00:18]} 51. Qf6+ {[%emt 0:00:06]} Kg8 {[%emt 0:00:09]} 52. Qe6+ {[%emt 0:00:06]} Kf8 {[%emt 0:00:09]} 1/2-1/2

[Event "10th Uppsala Young Champions 2023"]
[Site "Uppsala"]
[Date "2023.11.01"]
[Round "9.10"]
[White "Ostensson, Julia"]
[Black "Nilsson, Oliver"]
[Result "0-1"]
[ECO "B50"]
[WhiteElo "1878"]
[BlackElo "1933"]
[Annotator "NA"]
[PlyCount "94"]
[EventDate "2023.10.27"]
[EventType "swiss"]
[EventCountry "SWE"]
[SourceTitle "playchess.com"]
[Source "ChessBase"]
[SourceQuality "1"]
[TimeControl "5400+30"]

1. d3 {[%emt 0:00:05]} Nf6 {[%emt 0:00:21]} 2. Nf3 {[%emt 0:00:28]} g6 {[%emt 0:00:18]} 3. Nbd2 {[%emt 0:00:45]} Bg7 {[%emt 0:00:19]} 4. e4 {[%emt 0:00:45]} d6 {[%emt 0:00:14]} 5. Be2 {[%emt 0:01:07]} O-O {[%emt 0:00:12]} 6. O-O {[%emt 0:00:20]} c5 {[%emt 0:00:06]} 7. c3 {[%emt 0:00:39]} e5 {[%emt 0:01:07]} 8. b4 {[%emt 0:07:46]} cxb4 {[%emt 0:01:12]} 9. cxb4 {[%emt 0:00:03]} a5 {[%emt 0:00:46]} 10. b5 {[%emt 0:06:46]} Nbd7 {[%emt 0:08:52]} 11. Nc4 {[%emt 0:09:28]} Nc5 {[%emt 0:05:26]} 12. Ba3 {[%emt 0:02:14]} Bg4 {[%emt 0:13:46]} 13. Nfxe5 {[%emt 0:33:13]} Bxe2 {[%emt 0:09:46]} 14. Qxe2 {[%emt 0:00:11]} Rc8 {[%emt 0:00:52]} 15. Nf3 {[%emt 0:11:22]} Re8 {[%emt 0:01:45]} 16. Ne3 {[%emt 0:08:05]} Qd7 {[%emt 0:10:44]} 17. Rab1 {[%emt 0:00:28]} d5 {[%emt 0:02:15]} 18. e5 {[%emt 0:02:58]} Nh5 {[%emt 0:00:24]} 19. Bxc5 {[%emt 0:02:15]} Rxc5 {[%emt 0:00:43]} 20. d4 {[%emt 0:00:06]} Nf4 {[%emt 0:01:08]} 21. Qb2 {[%emt 0:00:07]} Rc3 {[%emt 0:04:27]} 22. Kh1 {[%emt 0:12:19]} Rec8 {[%emt 0:00:18]} 23. Qd2 {[%emt 0:00:00]} Bh6 {[%emt 0:05:43]} 24. a4 {[%emt 0:00:00]} Nxg2 {[%emt 0:05:04]} 25. Rbc1 {[%emt 0:00:55]} Rxc1 {[%emt 0:08:44]} 26. Rxc1 {[%emt 0:00:01]} Rxc1+ {[%emt 0:00:07]} 27. Qxc1 {[%emt 0:00:01]} Nxe3 {[%emt 0:00:15]} 28. fxe3 {[%emt 0:00:02]} Qh3 {[%emt 0:05:06]} 29. Qd1 {[%emt 0:01:07]} Bxe3 {[%emt 0:00:24]} 30. Qe2 {[%emt 0:00:13]} Bf4 {[%emt 0:01:24]} 31. Qg2 {[%emt 0:00:51]} Qc8 {[%emt 0:00:57]} 32. Qa2 {[%emt 0:01:08]} Qc4 {[%emt 0:01:14]} 33. Qxc4 {[%emt 0:00:15]} dxc4 {[%emt 0:00:06]} 34. Ne1 {[%emt 0:00:53]} f5 {[%emt 0:02:51]} 35. exf6 {[%emt 0:00:29]} Kf7 {[%emt 0:00:07]} 36. Kg2 {[%emt 0:01:05]} Kxf6 {[%emt 0:00:05]} 37. h3 {[%emt 0:00:00]} Bd2 {[%emt 0:00:28]} 38. Nc2 {[%emt 0:00:16]} Ke6 {[%emt 0:00:15]} 39. Kf3 {[%emt 0:00:13]} Kd5 {[%emt 0:00:09]} 40. Ke2 {[%emt 0:00:34]} Bc1 {[%emt 0:00:43]} 41. Kf3 {[%emt 0:00:26]} h5 {[%emt 0:00:29]} 42. h4 {[%emt 0:00:20]} c3 {[%emt 0:00:49]} 43. Na1 {[%emt 0:01:07]} Ba3 {[%emt 0:00:53]} 44. Kg3 {[%emt 0:00:32]} Bd6+ {[%emt 0:00:09]} 45. Kf3 {[%emt 0:00:05]} Be7 {[%emt 0:00:41]} 46. Kg3 {[%emt 0:00:25]} b6 {[%emt 0:00:57]} 47. Nc2 {[%emt 0:00:51]} Ke4 {[%emt 0:00:12]} 0-1

[Event "10th Uppsala Young Champions 2023"]
[Site "Uppsala"]
[Date "2023.11.01"]
[Round "9.11"]
[White "Frank, Anton"]
[Black "Tripathi, Pratyush"]
[Result "1/2-1/2"]
[ECO "D23"]
[WhiteElo "1997"]
[BlackElo "1801"]
[Annotator "NA"]
[PlyCount "174"]
[EventDate "2023.10.27"]
[EventType "swiss"]
[EventCountry "SWE"]
[SourceTitle "playchess.com"]
[Source "ChessBase"]
[SourceQuality "1"]
[TimeControl "5400+30"]

1. d4 {[%emt 0:00:03]} d5 {[%emt 0:00:21]} 2. c4 {[%emt 0:00:12]} c6 {[%emt 0:00:10]} 3. Nf3 {[%emt 0:00:07]} Nf6 {[%emt 0:00:05]} 4. Qb3 {[%emt 0:00:06]} dxc4 {[%emt 0:00:06]} 5. Qxc4 {[%emt 0:00:12]} Bf5 {[%emt 0:00:05]} 6. g3 {[%emt 0:00:45]} Nbd7 {[%emt 0:00:08]} 7. Bg2 {[%emt 0:00:50]} e6 {[%emt 0:00:22]} 8. O-O {[%emt 0:00:43]} Be7 {[%emt 0:01:17]} 9. e3 {[%emt 0:01:50]} O-O {[%emt 0:00:30]} 10. Qe2 {[%emt 0:00:39]} Qc7 {[%emt 0:03:08]} 11. Rd1 {[%emt 0:03:08]} Rfe8 {[%emt 0:06:59]} 12. Nc3 {[%emt 0:01:19]} Ne4 {[%emt 0:00:16]} 13. Ne1 {[%emt 0:04:13]} Ndf6 {[%emt 0:07:17]} 14. f3 {[%emt 0:07:21]} Nxc3 {[%emt 0:02:26]} 15. bxc3 {[%emt 0:00:47]} Rad8 {[%emt 0:00:04]} 16. e4 {[%emt 0:01:58]} Bg6 {[%emt 0:00:03]} 17. Nd3 {[%emt 0:07:34]} c5 {[%emt 0:05:32]} 18. Be3 {[%emt 0:01:36]} Qa5 {[%emt 0:03:11]} 19. Rac1 {[%emt 0:09:04]} Qa6 {[%emt 0:03:29]} 20. dxc5 {[%emt 0:06:13]} Nd7 {[%emt 0:04:24]} 21. Qc2 {[%emt 0:06:08]} Qa5 {[%emt 0:02:38]} 22. Qf2 {[%emt 0:05:16]} Rc8 {[%emt 0:02:15]} 23. Rb1 {[%emt 0:03:07]} Qc7 {[%emt 0:04:18]} 24. Rd2 {[%emt 0:03:56]} Red8 {[%emt 0:53:26]} 25. Rdb2 {[%emt 0:05:15]} Rb8 {[%emt 0:00:00]} 26. Bf1 {[%emt 0:03:43]} Bf6 {[%emt 0:00:00]} 27. Bd4 {[%emt 0:01:31]} e5 {[%emt 0:00:00]} 28. Be3 {[%emt 0:00:16]} Be7 {[%emt 0:00:00]} 29. c6 {[%emt 0:04:12]} bxc6 {[%emt 0:00:00]} 30. Bxa7 {[%emt 0:00:20]} Rxb2 {[%emt 0:00:00]} 31. Rxb2 {[%emt 0:00:08]} c5 {[%emt 0:00:00]} 32. Bxc5 {[%emt 0:03:15]} Nxc5 {[%emt 0:00:00]} 33. Nb4 {[%emt 0:00:07]} Na4 {[%emt 0:00:00]} 34. Na6 {[%emt 0:01:48]} Qxc3 {[%emt 0:00:00]} 35. Rc2 {[%emt 0:01:44]} Qa5 {[%emt 0:00:00]} 36. Kg2 {[%emt 0:01:45]} Bd6 {[%emt 0:00:00]} 37. Bc4 {[%emt 0:03:17]} Nc5 {[%emt 0:06:30]} 38. Nxc5 {[%emt 0:00:57]} Bxc5 {[%emt 0:00:00]} 39. Qxc5 {[%emt 0:00:45]} Qxc5 {[%emt 0:00:00]} 40. Bxf7+ {[%emt 0:00:02]} Bxf7 {[%emt 0:00:00]} 41. Rxc5 {[%emt 0:00:07]} Bxa2 {[%emt 0:00:00]} 42. Rxe5 {[%emt 0:00:14]} Rd2+ {[%emt 0:00:00]} 43. Kh3 {[%emt 0:00:41]} Bc4 {[%emt 0:00:00]} 44. Rh5 {[%emt 0:01:36]} Be2 {[%emt 0:00:00]} 45. Rf5 {[%emt 0:04:17]} Bf1+ {[%emt 0:00:00]} 46. Kg4 {[%emt 0:00:06]} Rxh2 {[%emt 0:00:00]} 47. Kf4 {[%emt 0:00:13]} g6 {[%emt 0:00:00]} 48. Ra5 {[%emt 0:00:14]} Kf7 {[%emt 0:00:00]} 49. Ra1 {[%emt 0:00:51]} Bb5 {[%emt 0:00:00]} 50. g4 {[%emt 0:00:28]} Bd7 {[%emt 0:00:39]} 51. Kg3 {[%emt 0:01:02]} Rd2 {[%emt 0:00:33]} 52. Ra3 {[%emt 0:01:07]} Rd1 {[%emt 0:00:56]} 53. Rc3 {[%emt 0:00:23]} h6 {[%emt 0:01:29]} 54. Ra3 {[%emt 0:00:32]} Kf6 {[%emt 0:01:03]} 55. Ra6+ {[%emt 0:00:43]} Be6 {[%emt 0:00:06]} 56. Ra3 {[%emt 0:00:13]} Rc1 {[%emt 0:00:25]} 57. Kf4 {[%emt 0:01:43]} Rc5 {[%emt 0:04:49]} 58. Ra7 {[%emt 0:00:45]} Bf7 {[%emt 0:00:00]} 59. Ra6+ {[%emt 0:00:17]} Be6 {[%emt 0:00:00]} 60. Ra7 {[%emt 0:00:06]} Bf7 {[%emt 0:00:00]} 61. Ra6+ {[%emt 0:00:06]} Kg7 {[%emt 0:00:00]} 62. Ra3 {[%emt 0:00:33]} Rc6 {[%emt 0:02:30]} 63. Rd3 {[%emt 0:01:31]} Be6 {[%emt 0:00:00]} 64. Ra3 {[%emt 0:00:13]} Rc2 {[%emt 0:00:00]} 65. Ra7+ {[%emt 0:00:16]} Bf7 {[%emt 0:00:00]} 66. Ra3 {[%emt 0:00:30]} Rg2 {[%emt 0:00:00]} 67. Ke5 {[%emt 0:01:12]} Rb2 {[%emt 0:00:00]} 68. Kf4 {[%emt 0:00:31]} Rg2 {[%emt 0:00:00]} 69. Ke5 {[%emt 0:00:07]} Rg3 {[%emt 0:00:13]} 70. Kd6 {[%emt 0:01:04]} h5 {[%emt 0:01:01]} 71. gxh5 {[%emt 0:00:12]} gxh5 {[%emt 0:00:04]} 72. Ke5 {[%emt 0:01:51]} Rg1 {[%emt 0:01:18]} 73. f4 {[%emt 0:02:33]} Rg2 {[%emt 0:01:46]} 74. f5 {[%emt 0:01:34]} Rg4 {[%emt 0:00:28]} 75. Re3 {[%emt 0:01:35]} Be8 {[%emt 0:00:37]} 76. Ke6 {[%emt 0:00:55]} Bf7+ {[%emt 0:00:31]} 77. Ke7 {[%emt 0:01:09]} Rf4 {[%emt 0:00:42]} 78. Rg3+ {[%emt 0:00:47]} Rg4 {[%emt 0:00:08]} 79. f6+ {[%emt 0:00:20]} Kg6 {[%emt 0:00:08]} 80. Re3 {[%emt 0:00:05]} Rf4 {[%emt 0:00:56]} 81. e5 {[%emt 0:00:09]} h4 {[%emt 0:00:38]} 82. Re1 {[%emt 0:00:49]} Bg8 {[%emt 0:00:25]} 83. Rg1+ {[%emt 0:00:19]} Kh7 {[%emt 0:00:32]} 84. e6 {[%emt 0:00:26]} Bxe6 {[%emt 0:00:26]} 85. Kxe6 {[%emt 0:00:14]} h3 {[%emt 0:00:04]} 86. Rg3 {[%emt 0:02:01]} h2 {[%emt 0:00:51]} 87. Rh3+ {[%emt 0:00:07]} Kg6 {[%emt 0:00:09]} 1/2-1/2